Workbook

Sheet 1
A1: 附件1：
A2: 2025年恩平市一般公共预算收支第二次调整情况表
E3: 编制日期：2025年9月1日 | L3: 单位：万元
A4: 收入 | E4: 支出
A5: 项目 | B5: 第一次调整后预算数 | C5: 调整数 | D5: 调整后预算数 | E5: 项目 | F5: 第一次调整后预算数 | G5: 调整数 | L5: 调整后预算数 | N5: 调整变化 | P5: 压减一般性支出
G6: 合计 | H6: 本级项目调整 | K6: 上年结转资金调整
H7: 小计 | I7: 新增支出 | J7: 调减支出 | N7: 新增支出 | O7: 调减支出
A8: 税收收入 | B8: 78,000 | C8: =SUM(C9:C21) -> 32,960 | D8: =SUM(D9:D21) -> 110,960 | E8: 一、一般公共服务支出 | F8: 49,507 | G8: =H8+K8 -> 0 | H8: =I8+J8 -> 0 | L8: =F8+G8 -> 49,507
A9: 增值税 | B9: 28,000 | C9: 22,400 | D9: =B9+C9 -> 50,400 | E9: 二、国防支出 | F9: 333 | G9: =H9+K9 -> 0 | H9: 0 | L9: =F9+G9 -> 333
A10: 企业所得税 | B10: 4,800 | C10: 3,840 | D10: =B10+C10 -> 8,640 | E10: 三、公共安全支出 | F10: 21,284 | G10: 0 | H10: 0 | L10: 21,284
A11: 个人所得税 | B11: 1,900 | C11: 1,520 | D11: 3,420 | E11: 四、教育支出 | F11: 85,075 | G11: 0 | H11: 0 | L11: 85,075
A12: 资源税 | B12: 100 | D12: 100 | E12: 五、科学技术支出 | F12: 7,207 | G12: 0 | H12: 0 | L12: 7,207
A13: 城市维护建设税 | B13: 6,000 | D13: 6,000 | E13: 六、文化旅游体育与传媒支出 | F13: 6,534 | G13: 0 | H13: 0 | L13: 6,534
A14: 房产税 | B14: 10,700 | D14: 10,700 | E14: 七、社会保障和就业支出 | F14: 94,723 | G14: 0 | H14: 0 | L14: 94,723
A15: 印花税 | B15: 2,000 | D15: 2,000 | E15: 八、卫生健康支出 | F15: 61,177 | G15: 0 | H15: 0 | L15: 61,177
A16: 城镇土地使用税 | B16: 5,500 | D16: 5,500 | E16: 九、节能环保支出 | F16: 4,368 | G16: 0 | H16: 0 | L16: 4,368
A17: 土地增值税 | B17: 6,500 | C17: 5,200 | D17: 11,700 | E17: 十、城乡社区支出 | F17: 7,437 | G17: 0 | H17: 0 | L17: 7,437
A18: 车船税 | B18: 2,400 | D18: 2,400 | E18: 十一、农林水支出 | F18: 56,648 | G18: 0 | H18: 0 | L18: 56,648
A19: 耕地占用税 | B19: 1,000 | D19: 1,000 | E19: 十二、交通运输支出 | F19: 12,588 | G19: 0 | H19: 0 | L19: 12,588
A20: 契税 | B20: 8,500 | D20: 8,500 | E20: 十三、资源勘探信息等支出 | F20: 955 | G20: 0 | H20: 0 | L20: 955
A21: 环境保护税 | B21: 600 | D21: 600 | E21: 十四、商业服务业等支出 | F21: 945 | G21: 0 | H21: 0 | L21: 945
A22: 非税收入 | B22: 70,438 | D22: 70,438 | E22: 十五、金融支出 | F22: 175 | G22: 0 | H22: 0 | L22: 175
A23: 一般公共预算收入合计 | B23: =B8+B22 -> 148,438 | C23: =C8+C22 -> 32,960 | D23: 181,398 | E23: 十六、自然资源海洋气象支出 | F23: 4,915 | G23: 0 | H23: 0 | L23: 4,915
E24: 十七、住房保障支出 | F24: 8,314 | G24: 0 | H24: 0 | L24: 8,314
E25: 十八、粮油物资储备支出 | F25: 2,332 | G25: 0 | H25: 0 | L25: 2,332
E26: 十九、灾害防治及应急管理支出 | F26: 3,964 | G26: 0 | H26: 0 | L26: 3,964
E27: 二十、债务付息支出 | F27: 2,185 | G27: 0 | H27: 0 | L27: 2,185
E28: 二十一、债务发行费用支出 | F28: 2 | G28: 0 | H28: 0 | L28: 2
E29: 二十二、其他支出 | F29: 12,487 | G29: 0 | H29: 0 | L29: 12,487
E30: 二十三、预备费 | F30: 3,330 | G30: 0 | H30: 0 | L30: 3,330
E31: 一般公共预算支出合计 | F31: =SUM(F8:F30) -> 446,486 | G31: 0 | H31: 0 | I31: 0 | J31: 0 | K31: 0 | L31: 446,486 | N31: =SUM(N8:N30) -> 0 | O31: =SUM(O8:O30) -> 0 | P31: =SUM(P8:P30) -> 0
A32: 转移性收入 | B32: =B33+B34+B35+B36+B38+B37+B40+B39 -> 314,478 | C32: =C33+C34+C35+C36+C38+C37+C40+C39 -> -2,154 | D32: =D33+D34+D35+D36+D38+D37+D40+D39 -> 312,324 | E32: 转移性支出 | F32: =F33+F34+F35+F36 -> 16,430 | G32: 30,806 | H32: 30,806 | I32: 30,806 | J32: 0 | K32: 0 | L32: 47,236
A33: 税收返还收入 | B33: 13,690 | D33: =B33+C33 -> 13,690 | E33: 体制上解支出 | F33: 3,484 | G33: =H33+K33 -> 30,806 | H33: =I33+J33 -> 30,806 | I33: 30,806 | L33: =F33+G33 -> 34,290
A34: 财力性补助收入 | B34: 120,000 | D34: =B34+C34 -> 120,000 | E34: 专项上解支出 | F34: 12,629 | G34: =H34+K34 -> 0 | H34: =I34+J34 -> 0 | L34: =F34+G34 -> 12,629
A35: 专项补助收入 | B35: 93,232 | D35: 93,232 | E35: 调出资金 | G35: =H35+K35 -> 0 | H35: =I35+J35 -> 0 | L35: =F35+G35 -> 0
A36: 上年结转收入 | B36: 13,265 | D36: 13,265 | E36: 地方政府一般债券还本支出 | F36: 317 | G36: =H36+K36 -> 0 | H36: =I36+J36 -> 0 | L36: =F36+G36 -> 317
A37: 地方政府一般债务转贷收入 | B37: 2,000 | D37: 2,000
A38: 调入资金 | B38: 20,167 | D38: 20,167
A39: 动用预算稳定调节基金 | B39: 21,583 | C39: -2,154 | D39: 19,429
A40: 区域间转移性收入 | B40: 30,541 | D40: 30,541
A41: 收入总计 | B41: =B23+B32 -> 462,916 | C41: =C23+C32 -> 30,806 | D41: =D23+D32 -> 493,722 | E41: 支出总计 | F41: =F31+F32 -> 462,916 | G41: =H41+K41 -> 30,806 | H41: 30,806 | I41: 30,806 | J41: 0 | K41: 0 | L41: 493,722
E42: 结余 | F42: =B41-F41 -> 0 | L42: =D41-L41 -> 0

Sheet 2
A1: 附件2：
A2: 2025年恩平市政府性基金预算收支第二次调整情况表
E3: 编制日期：2025年9月1日 | L3: 单位：万元
A4: 收入 | E4: 支出
A5: 项目 | B5: 第一次调整后预算数 | C5: 调整数 | D5: 调整后预算数 | E5: 项目 | F5: 第一次调整后预算数 | G5: 调整数 | L5: 调整后预算数
G6: 合计 | H6: 本级项目调整 | K6: 上年结转资金调整
H7: 小计 | I7: 新增支出 | J7: 调减支出
A8: 文化体育与传媒 | D8: =B8+C8 -> 0 | E8: 文化体育与传媒支出 | F8: =SUM(F9) -> 24 | G8: =H8+K8 -> 0 | H8: =H9 -> 0 | I8: =I9 -> 0 | J8: =J9 -> 0 | K8: =K9 -> 0 | L8: =F8+G8 -> 24
A9: 国家电影事业发展专项资金收入 | D9: =B9+C9 -> 0 | E9: 国家电影事业发展专项资金安排的支出 | F9: 24 | G9: =H9+K9 -> 0 | L9: =F9+G9 -> 24
A10: 社会保障和就业 | D10: 0 | E10: 社会保障和就业支出 | F10: =F11+F12 -> 0 | G10: 0 | H10: =H11+H12 -> 0 | I10: =I11+I12 -> 0 | J10: =J11+J12 -> 0 | K10: =K11+K12 -> 0 | L10: 0
A11: 大中型水库移民后期扶持基金收入 | D11: 0 | E11: 大中型水库移民后期扶持基金支出 | G11: 0 | L11: 0
A12: 小型水库移民扶助基金收入 | D12: 0 | E12: 小型水库移民扶助基金安排的支出 | G12: 0 | L12: 0
A13: 城乡社区事务 | B13: =B14+B15+B16+B17+B18 -> 102,100 | D13: 102,100 | E13: 城乡社区支出 | F13: =SUM(F14:F18) -> 89,051 | G13: 0 | H13: =H14+H15+H16+H17+H18 -> 0 | I13: =I14+I15+I16+I17+I18 -> 0 | J13: =J14+J15+J16+J17+J18 -> 0 | K13: =K14+K15+K16+K17+K18 -> 0 | L13: 89,051
A14: 国有土地使用权出让收入 | B14: 87,200 | D14: =B14 -> 87,200 | E14: 国有土地使用权出让收入安排的支出 | F14: 74,689 | G14: 0 | H14: =I14+J14 -> 0 | L14: 74,689
A15: 国有土地收益基金收入 | B15: 5,000 | D15: =B15 -> 5,000 | E15: 国有土地收益基金安排的支出 | F15: 5,000 | G15: 0 | H15: =I15+J15 -> 0 | L15: 5,000
A16: 农业土地开发资金收入 | B16: 800 | D16: 800 | E16: 农业土地开发资金支出 | F16: 892 | G16: 0 | H16: =I16+J16 -> 0 | L16: 892
A17: 城市基础设施配套费收入 | B17: 6,000 | D17: 6,000 | E17: 城市基础设施配套费安排的支出 | F17: 5,670 | G17: 0 | H17: =I17+J17 -> 0 | L17: 5,670
A18: 污水处理费收入 | B18: 3,100 | D18: 3,100 | E18: 污水处理费安排的支出 | F18: 2,800 | G18: 0 | H18: =I18+J18 -> 0 | L18: 2,800
A19: 农林水事务 | D19: 0 | E19: 农林水支出 | F19: =F20+F21+F22 -> 3,547 | G19: 0 | H19: =H20 -> 0 | I19: =I20 -> 0 | J19: =J20 -> 0 | K19: =K20 -> 0 | L19: 3,547
A20: 大中型水库库区基金收入 | D20: 0 | E20: 大中型水库库区基金支出 | F20: 3 | G20: 0 | L20: 3
E21: 大中型水库移民后期扶持基金支出 | F21: 3,505 | G21: 0 | L21: 3,505
E22: 小型水库移民扶助基金支出 | F22: 39 | G22: 0 | L22: 39
A23: 其他 | B23: =B24+B25 -> 530 | D23: =D24+D25 -> 530 | E23: 其他支出 | F23: =F24+F25+F26 -> 155,433 | G23: =H23+K23 -> 37,500 | H23: =SUM(H24:H26) -> 37,500 | I23: =SUM(I24:I26) -> 37,500 | J23: =SUM(J24:J26) -> 0 | K23: =SUM(K24:K26) -> 0 | L23: 192,933
A24: 彩票发行机构和彩票销售机构的业务费 | D24: 0 | E24: 其他政府性基金及对应专项债务收入安排的支出 | F24: 153,883 | G24: 37,500 | H24: =I24+J24 -> 37,500 | I24: 37,500 | L24: 191,383
A25: 彩票公益金收入 | B25: 530 | D25: 530 | E25: 彩票发行销售机构业务费安排的支出 | F25: 119 | G25: 0 | H25: =I25+J25 -> 0 | L25: 119
E26: 彩票公益金安排的支出 | F26: 1,430 | G26: 0 | H26: =I26+J26 -> 0 | L26: 1,430
L27: 0
A29: 本级收入合计 | B29: =B8+B10+B13+B19+B23 -> 102,630 | C29: =C8+C10+C13+C19+C23 -> 0 | D29: =D8+D10+D13+D19+D23 -> 102,630 | E29: 支出小计 | F29: =F8+F10+F13+F19+F23+F27 -> 248,055 | G29: 37,500 | H29: 37,500 | I29: 37,500 | J29: 0 | K29: 0 | L29: 285,555
A30: 转移性收入 | B30: =B31+B32+B33+B34 -> 159,785 | C30: =C31+C32+C33+C34 -> 38,460 | D30: =D31+D32+D33+D34 -> 198,245 | E30: 转移性支出 | F30: =F31+F32+F33 -> 13,606 | G30: =G31+G33+G32 -> 960 | H30: =H31+H33+H32 -> 960 | I30: =I31+I33+I32 -> 960 | J30: =J31+J33+J32 -> 0 | K30: 0 | L30: 14,566
A31: 专项补助收入 | B31: 2,624 | D31: =B31+C31 -> 2,624 | E31: 专项债务还本支出 | F31: 240 | G31: =H31+K31 -> 960 | H31: =I31+J31 -> 960 | I31: 960 | L31: =F31+G31 -> 1,200
A32: 上年结转收入 | B32: 48,461 | D32: =B32+C32 -> 48,461 | E32: 上解支出 | F32: 500 | G32: =H32+K32 -> 0 | H32: =I32+J32 -> 0 | L32: =F32+G32 -> 500
A33: 地方政府专项债务转贷收入 | B33: 108,700 | C33: 38,460 | D33: =B33+C33 -> 147,160 | E33: 调出资金 | F33: 12,866 | G33: =H33+K33 -> 0 | H33: =I33+J33 -> 0 | L33: =F33+G33 -> 12,866
A36: 收入总计 | B36: =B29+B30 -> 262,415 | C36: =C29+C30 -> 38,460 | D36: =D29+D30 -> 300,875 | E36: 支出总计 | F36: =F29+F30 -> 261,661 | G36: 38,460 | H36: 38,460 | I36: 38,460 | J36: 0 | K36: 0 | L36: 300,121
E37: 结余 | F37: =B36-F36 -> 754 | L37: =D36-L36 -> 754

Sheet 3
A1: 附件3：
A2: 2025年恩平市政府性基金预算支出本级项目第二次调整计划
G3: 单位：万元
A4: 序号 | B4: 科目(范例：2137201移民补助） | C4: 预算单位 | D4: 项目 | E4: 预算数 | F4: 调整数 | G4: 调整后预算数 | H4: 备注
A5: 1 | B5: 2290403其他政府性基金债务收入安排的支出 | C5: 恩平市城市管理和综合执法局 | D5: 恩平市新一轮生活污水处理设施整市捆绑PPP项目 | E5: 0.00 | F5: 500.00 | G5: 500.00 | H5: 《广东省财政厅关于下达2025年8月地方政府新增债券转贷资金的通知》（粤财债〔2025〕62号）、《广东省财政厅关于下达2025年9月上旬地方政府新增债券转贷资金的通知》（粤财债〔2025〕71号）
A6: 2 | B6: 2290403其他政府性基金债务收入安排的支出 | C6: 恩平市水利局 | D6: 江门市潭江河流治理工程PPP项目（恩平段） | E6: 0.00 | F6: 1600.00 | G6: =E6+F6 -> 1600.00 | H6: 《广东省财政厅关于下达2025年8月地方政府新增债券转贷资金的通知》（粤财债〔2025〕62号）、《广东省财政厅关于下达2025年9月上旬地方政府新增债券转贷资金的通知》（粤财债〔2025〕71号）
A7: 3 | B7: 2290403其他政府性基金债务收入安排的支出 | C7: 恩平市城市管理和综合执法局 | D7: 恩平中心城区飞马大桥及沿江路（恩平大桥至碧涛苑段）改建PPP项目 | E7: 0.00 | F7: 475.00 | G7: =E7+F7 -> 475.00 | H7: 《广东省财政厅关于下达2025年8月地方政府新增债券转贷资金的通知》（粤财债〔2025〕62号）、《广东省财政厅关于下达2025年9月上旬地方政府新增债券转贷资金的通知》（粤财债〔2025〕71号）
A8: 4 | B8: 2290403其他政府性基金债务收入安排的支出 | C8: 恩平市城市管理和综合执法局 | D8: 恩平中心城区环境综合整治及改造提升PPP项目 | E8: 0.00 | F8: 1025.00 | G8: 1025.00 | H8: 《广东省财政厅关于下达2025年8月地方政府新增债券转贷资金的通知》（粤财债〔2025〕62号）、《广东省财政厅关于下达2025年9月上旬地方政府新增债券转贷资金的通知》（粤财债〔2025〕71号）
A9: 5 | B9: 2290403其他政府性基金债务收入安排的支出 | C9: 政府债务管理股 | D9: 恩平市存量政府投资项目 | E9: 0.00 | F9: 15400.00 | G9: 15400.00 | H9: 《广东省财政厅关于下达2025年9月上旬地方政府新增债券转贷资金的通知》（粤财债〔2025〕71号），用于化解政府拖欠企业账款专项债券的支出
A10: 6 | B10: 2290403其他政府性基金债务收入安排的支出 | C10: 政府债务管理股 | D10: 恩平市存量政府投资项目-2 | E10: 0.00 | F10: 18500.00 | G10: 18500.00 | H10: 《广东省财政厅关于下达2025年9月上旬地方政府新增债券转贷资金的通知》（粤财债〔2025〕71号），用于化解政府拖欠企业账款专项债券的支出
A11: 合计 | E11: =SUM(E5:E10) -> 0.00 | F11: =SUM(F5:F10) -> 37500.00 | G11: =SUM(G5:G10) -> 37500.00

Sheet Sheet1 (hidden)
E1: 2000
E2: 3967.59
E3: 4230.2
E4: 56634.5
E5: 10532.6
E6: 10800
E7: 7874.94
E8: 68400
E9: 40800
E10: 2000
E11: 5798
E12: 39000
E13: 2400
E14: 28500
E15: 40000
E16: 42253.68
E17: 13800
E18: 8400
E19: 2400
E20: 6000
E21: 5400
E22: 27508.8
E23: 2744.3
E24: 4200
E25: 9000
E26: 2000
E27: 4800
E28: 1200
E29: 4675
E30: 7200
E31: 5450.24
E32: 13200
E33: 48751.43
E34: 3600
E35: 6462
E36: 6236.82
E37: 3600
E38: 3203.2
E39: 14313.65
E40: 7200
E41: 6424.89
E42: 43800
E43: 9209.02
E44: 5400
E45: 3299.46
E46: 35144.63
E47: 2965.73
E48: 29552.9
E49: 287058.54
